Department Family,Entity,Date,Expenses Type,Expense Area,Supplier,Transaction Number, Total 
Department of Health,The Christie NHS Foundation Trust,14/06/2018,Drugs,Drugs,ALCURA UK LIMITED,0000585740," 63,083.06 "
Department of Health,The Christie NHS Foundation Trust,07/06/2018,PET Scans - Apr-18,Christie Medical Physics,ALLIANCE MEDICAL LTD,0000583368," 39,345.00 "
Department of Health,The Christie NHS Foundation Trust,07/06/2018,PET Scans - Apr-18,Christie Medical Physics,ALLIANCE MEDICAL LTD,0000583041," 130,255.00 "
Department of Health,The Christie NHS Foundation Trust,07/06/2018,drugs,Christie Medical Physics,ALLIANCE MEDICAL RADIOPHARMACY LIMITED,0000583407," 30,996.90 "
Department of Health,The Christie NHS Foundation Trust,14/06/2018,Feasibility study,Capital,ATHERDEN FULLER  LENG,0000584632," 35,000.00 "
Department of Health,The Christie NHS Foundation Trust,07/06/2018,Drugs,Drugs,BAXTER HEALTHCARE LTD,0000583577," 293,215.10 "
Department of Health,The Christie NHS Foundation Trust,14/06/2018,Drugs,Drugs,BAXTER HEALTHCARE LTD,0000585696," 336,207.60 "
Department of Health,The Christie NHS Foundation Trust,28/06/2018,Drugs,Drugs,BAXTER HEALTHCARE LTD,0000585361," 342,449.87 "
Department of Health,The Christie NHS Foundation Trust,07/06/2018,Drugs,Drugs,BAXTER HEALTHCARE LTD,0000584131," 474,986.70 "
Department of Health,The Christie NHS Foundation Trust,21/06/2018,Drugs,Drugs,BAXTER HEALTHCARE LTD,0000584572," 829,292.77 "
Department of Health,The Christie NHS Foundation Trust,07/06/2018,Medical Equipment Maintenance Contract,Clinical Support & Specialist Surgery,CPP FACILITIES LLP,0000583424," 172,856.77 "
Department of Health,The Christie NHS Foundation Trust,28/06/2018,Medical Equipment Maintenance Contract,Clinical Support & Specialist Surgery,CPP FACILITIES LLP,0000584930," 174,671.29 "
Department of Health,The Christie NHS Foundation Trust,28/06/2018,Medical Equipment Maintenance Contract,Clinical Support & Specialist Surgery,CPP FACILITIES LLP,0000584935," 199,560.11 "
Department of Health,The Christie NHS Foundation Trust,14/06/2018,CRC Phase 2 fund payment ,Estates & Facilities,DEPARTMENT OF ENERGY AND CLIMATE CHANGE,0000584807," 70,657.60 "
Department of Health,The Christie NHS Foundation Trust,28/06/2018,Oncology Services Apr-18,Drugs,EAST CHESHIRE NHS TRUST,0000582835," 107,357.34 "
Department of Health,The Christie NHS Foundation Trust,28/06/2018,Energy Contract PBT2  May-18,Network Services,EDF ENERGY,0000585931," 29,942.67 "
Department of Health,The Christie NHS Foundation Trust,28/06/2018,Energy Contract PBT1  May-18,Network Services,EDF ENERGY,0000585928," 39,710.90 "
Department of Health,The Christie NHS Foundation Trust,21/06/2018,Linear Accelerator Development,Capital,ELEKTA  LTD,0000584726," 45,426.30 "
Department of Health,The Christie NHS Foundation Trust,14/06/2018,Childcare Voucher - May 18,Human Resources,FIDELITI LIMITED,0000583987," 33,254.59 "
Department of Health,The Christie NHS Foundation Trust,21/06/2018,Computer Equipment,Finance & Business Development,HP INC.UK LIMITED,0000583560," 36,690.96 "
Department of Health,The Christie NHS Foundation Trust,14/06/2018,Proton Beam Development (PBT),Capital,INTERSERVE CONSTRUCTION LTD,0000585565," 59,625.48 "
Department of Health,The Christie NHS Foundation Trust,28/06/2018,Proton Beam Development (PBT),Capital,INTERSERVE CONSTRUCTION LTD,0000586544," 1,092,280.74 "
Department of Health,The Christie NHS Foundation Trust,14/06/2018,Chemotherapy Prescribing system - Apr-18 to Jun-18,Finance & Business Development,IQ HEALTH TECH LTD,0000580535," 32,500.00 "
Department of Health,The Christie NHS Foundation Trust,07/06/2018,Rates 18/19,Estates & Facilities,M/CR CITY COUNCIL (RATES) DD,0000585420," 76,032.00 "
Department of Health,The Christie NHS Foundation Trust,28/06/2018,Macmillan Service Jun-18,Network Services,MID CHESHIRE HOSPITALS NHS FT,0000585985," 45,375.83 "
Department of Health,The Christie NHS Foundation Trust,21/06/2018,Drugs,Drugs,MID CHESHIRE HOSPITALS NHS FT,0000584929," 58,781.76 "
Department of Health,The Christie NHS Foundation Trust,28/06/2018,Drugs,Drugs,MID CHESHIRE HOSPITALS NHS FT,0000586011," 100,055.92 "
Department of Health,The Christie NHS Foundation Trust,21/06/2018,drugs,Drugs,MID CHESHIRE HOSPITALS NHS FT,0000581095," 102,807.92 "
Department of Health,The Christie NHS Foundation Trust,15/06/2018,Blood Products,Network Services,NHS BLOOD AND TRANSPLANT,0000586076," 182,293.80 "
Department of Health,The Christie NHS Foundation Trust,18/06/2018,NHS Litigation (NHSLA),Finance & Business Development,NHS LITIGATION AUTHORITY,0000586141," 93,092.10 "
Department of Health,The Christie NHS Foundation Trust,14/06/2018,Stock for all Wards & Departments,All Wards and Departments,NHS SUPPLY CHAIN,0000585443," 35,093.02 "
Department of Health,The Christie NHS Foundation Trust,07/06/2018,Stock for all Wards & Departments,All Wards and Departments,NHS SUPPLY CHAIN,0000584819," 39,170.92 "
Department of Health,The Christie NHS Foundation Trust,28/06/2018,Stock for all Wards & Departments,All Wards and Departments,NHS SUPPLY CHAIN,0000586541," 39,754.49 "
Department of Health,The Christie NHS Foundation Trust,21/06/2018,Stock for all Wards & Departments,All Wards and Departments,NHS SUPPLY CHAIN,0000586030," 47,994.44 "
Department of Health,The Christie NHS Foundation Trust,07/06/2018,Medical Equipment Maintenance Contract,Network Services,NHS SUPPLY CHAIN,0000583842," 54,163.75 "
Department of Health,The Christie NHS Foundation Trust,07/06/2018,Medical Equipment Maintenance Contract,Network Services,NHS SUPPLY CHAIN,0000583843," 65,118.04 "
Department of Health,The Christie NHS Foundation Trust,28/06/2018,Medical Equipment,Clinical Support & Specialist Surgery,NHS SUPPLY CHAIN,0000584749," 213,748.01 "
Department of Health,The Christie NHS Foundation Trust,07/06/2018,Patient Travel 18/19,Clinical Support & Specialist Surgery,NORTH WEST AMBULANCE SERVICE,0000583693," 30,000.00 "
Department of Health,The Christie NHS Foundation Trust,07/06/2018,Software Licences,Finance & Business Development,SOFTCAT PLC,0000583389," 139,999.90 "
Department of Health,The Christie NHS Foundation Trust,07/06/2018,Patient Testing Service ,Clinical Support & Specialist Surgery,THE CHRISTIE PATHOLOGY PARTNERSHIP LLP,0000583425," 363,727.73 "
Department of Health,The Christie NHS Foundation Trust,28/06/2018,Patient Testing Service ,Clinical Support & Specialist Surgery,THE CHRISTIE PATHOLOGY PARTNERSHIP LLP,0000584931," 367,545.91 "
Department of Health,The Christie NHS Foundation Trust,28/06/2018,Patient Testing Service ,Clinical Support & Specialist Surgery,THE CHRISTIE PATHOLOGY PARTNERSHIP LLP,0000584936," 419,917.30 "
Department of Health,The Christie NHS Foundation Trust,28/06/2018,Christie @ Oldham - Apr-18 to Jun-18,Estates & Facilities,THE PENNINE ACUTE HOSPITAL NHS TRUST,0000584474," 38,140.50 "
Department of Health,The Christie NHS Foundation Trust,14/06/2018,Proton Beam Development (PBT),Capital,VARIAN MEDICAL SYSTEMS UK LTD,0000584303," 71,643.30 "
Department of Health,The Christie NHS Foundation Trust,07/06/2018,Energy Contract - Mar-18,Estates & Facilities,VEOLIA ENERGY &UTILITY SERVICES UK PLC,0000583133," 238,375.31 "
